[Event "Titled Tuesday Blitz May 30 Early 2023"]
[White "Kozak, Adam"]
[Black "Mekhane, Adam"]
[WhiteFideId "753246"]
[BlackFideId "36050601"]
[WhiteElo "2469"]
[BlackElo "2177"]
[Result "0-1"]
[Round "01"]
[TimeControl "180+2"]
[Date "2023.05.30"]
[WhiteClock "0:00:00"]
[BlackClock "0:00:42"]

1. e4 {[%clk 0:02:53]}  c5 {[%clk 0:02:59]} 2. c3 {[%clk 0:02:51]}  Nf6 {[%clk 0:02:55]} 3. e5 {[%clk 0:02:48]}  Nd5 {[%clk 0:02:56]} 4. Nf3 {[%clk 0:02:44]}  d6 {[%clk 0:02:55]} 5. Bc4 {[%clk 0:02:22]}  Nb6 {[%clk 0:02:54]} 6. Bb5+ {[%clk 0:02:21]}  Nc6 {[%clk 0:02:51]} 7. Bxc6+ {[%clk 0:02:20]}  bxc6 {[%clk 0:02:50]} 8. h3 {[%clk 0:02:18]}  g6 {[%clk 0:02:48]} 9. O-O {[%clk 0:02:15]}  Bg7 {[%clk 0:02:48]} 10. exd6 {[%clk 0:02:12]}  exd6 {[%clk 0:02:48]} 11. Re1+ {[%clk 0:02:12]}  Be6 {[%clk 0:02:48]} 12. d4 {[%clk 0:02:12]}  cxd4 {[%clk 0:02:47]} 13. Nxd4 {[%clk 0:02:09]}  Qd7 {[%clk 0:02:40]} 14. Qg4 {[%clk 0:01:25]}  O-O {[%clk 0:02:33]} 15. Nxe6 {[%clk 0:01:25]}  fxe6 {[%clk 0:02:32]} 16. Qxe6+ {[%clk 0:01:24]}  Qxe6 {[%clk 0:02:31]} 17. Rxe6 {[%clk 0:01:25]}  Be5 {[%clk 0:02:21]} 18. Re7 {[%clk 0:01:19]}  Nd5 {[%clk 0:02:12]} 19. Rb7 {[%clk 0:01:17]}  Rfb8 {[%clk 0:02:09]} 20. Rxb8+ {[%clk 0:01:10]}  Rxb8 {[%clk 0:02:09]} 21. Nd2 {[%clk 0:01:06]}  Nf4 {[%clk 0:02:01]} 22. Kf1 {[%clk 0:00:59]}  d5 {[%clk 0:01:39]} 23. Nf3 {[%clk 0:00:59]}  Bd6 {[%clk 0:01:31]} 24. Nd4 {[%clk 0:00:45]}  Nd3 {[%clk 0:01:25]} 25. Nxc6 {[%clk 0:00:44]}  Rb6 {[%clk 0:01:24]} 26. Na5 {[%clk 0:00:28]}  Nxc1 {[%clk 0:01:20]} 27. Rxc1 {[%clk 0:00:27]}  Rxb2 {[%clk 0:01:20]} 28. Nb3 {[%clk 0:00:23]}  Rxa2 {[%clk 0:01:17]} 29. Rd1 {[%clk 0:00:23]}  Rb2 {[%clk 0:01:16]} 30. Rxd5 {[%clk 0:00:18]}  Rxb3 {[%clk 0:01:16]} 31. Rxd6 {[%clk 0:00:18]}  Rxc3 {[%clk 0:01:16]} 32. Rd8+ {[%clk 0:00:18]}  Kg7 {[%clk 0:01:01]} 33. Rd7+ {[%clk 0:00:19]}  Kh6 {[%clk 0:01:02]} 34. Rxa7 {[%clk 0:00:18]}  Rc6 {[%clk 0:01:02]} 35. h4 {[%clk 0:00:13]}  Rc5 {[%clk 0:00:52]} 36. g3 {[%clk 0:00:07]}  g5 {[%clk 0:00:52]} 37. hxg5+ {[%clk 0:00:05]}  Rxg5 {[%clk 0:00:51]} 38. Kg2 {[%clk 0:00:05]}  Rb5 {[%clk 0:00:50]} 39. Kh3 {[%clk 0:00:02]}  Kg6 {[%clk 0:00:50]} 40. Kg4 {[%clk 0:00:02]}  Rb4+ {[%clk 0:00:50]} 41. f4 {[%clk 0:00:02]}  Rc4 {[%clk 0:00:50]} 42. Ra6+ {[%clk 0:00:01]}  Kg7 {[%clk 0:00:46]} 43. Kg5 {[%clk 0:00:00]}  h6+ {[%clk 0:00:42]} 0-1


[Site "https://www.chess.com"]

[Event "Titled Tuesday Blitz May 30 Early 2023"]
[White "Galchenko, Matvey"]
[Black "Ljukin, Sergei"]
[WhiteFideId "24175480"]
[BlackFideId "14102200"]
[WhiteElo "2423"]
[BlackElo "2312"]
[Result "1/2-1/2"]
[Round "01"]
[TimeControl "180+2"]
[Date "2023.05.30"]
[WhiteClock "0:00:04"]
[BlackClock "0:00:07"]

1. f4 {[%clk 0:02:44]}  d5 {[%clk 0:02:59]} 2. Nf3 {[%clk 0:02:18]}  Nf6 {[%clk 0:02:58]} 3. g3 {[%clk 0:02:19]}  Bf5 {[%clk 0:02:58]} 4. Bg2 {[%clk 0:02:20]}  e6 {[%clk 0:02:59]} 5. O-O {[%clk 0:02:20]}  Bc5+ {[%clk 0:02:59]} 6. e3 {[%clk 0:02:21]}  Nc6 {[%clk 0:02:57]} 7. d3 {[%clk 0:02:21]}  O-O {[%clk 0:02:44]} 8. Qe2 {[%clk 0:02:18]}  Re8 {[%clk 0:02:39]} 9. Ne5 {[%clk 0:01:55]}  Nxe5 {[%clk 0:02:22]} 10. fxe5 {[%clk 0:01:56]}  Nd7 {[%clk 0:02:22]} 11. d4 {[%clk 0:01:34]}  Bb6 {[%clk 0:02:13]} 12. Kh1 {[%clk 0:01:30]}  c5 {[%clk 0:02:12]} 13. c3 {[%clk 0:01:30]}  Bg6 {[%clk 0:02:08]} 14. Nd2 {[%clk 0:01:28]}  f6 {[%clk 0:02:03]} 15. exf6 {[%clk 0:01:12]}  Nxf6 {[%clk 0:02:03]} 16. dxc5 {[%clk 0:01:08]}  Bxc5 {[%clk 0:02:02]} 17. e4 {[%clk 0:01:09]}  Bb6 {[%clk 0:01:48]} 18. e5 {[%clk 0:01:01]}  Nd7 {[%clk 0:01:48]} 19. Nf3 {[%clk 0:01:01]}  Nc5 {[%clk 0:01:35]} 20. Rd1 {[%clk 0:00:39]}  Ne4 {[%clk 0:01:32]} 21. Be3 {[%clk 0:00:39]}  Bh5 {[%clk 0:01:23]} 22. Bd4 {[%clk 0:00:31]}  Rf8 {[%clk 0:01:12]} 23. Qe3 {[%clk 0:00:29]}  Bxd4 {[%clk 0:01:07]} 24. Rxd4 {[%clk 0:00:27]}  Qb6 {[%clk 0:01:05]} 25. b3 {[%clk 0:00:25]}  Bxf3 {[%clk 0:00:19]} 26. Bxf3 {[%clk 0:00:25]}  Nxc3 {[%clk 0:00:19]} 27. Bg4 {[%clk 0:00:19]}  Ne4 {[%clk 0:00:17]} 28. Kg1 {[%clk 0:00:15]}  Rac8 {[%clk 0:00:14]} 29. Rxe4 {[%clk 0:00:10]}  dxe4 {[%clk 0:00:13]} 30. Qxb6 {[%clk 0:00:10]}  axb6 {[%clk 0:00:14]} 31. Bxe6+ {[%clk 0:00:10]}  Kh8 {[%clk 0:00:12]} 32. Bxc8 {[%clk 0:00:11]}  Rxc8 {[%clk 0:00:11]} 33. Re1 {[%clk 0:00:12]}  Kg8 {[%clk 0:00:12]} 34. e6 {[%clk 0:00:11]}  Kf8 {[%clk 0:00:12]} 35. Rxe4 {[%clk 0:00:12]}  Ke7 {[%clk 0:00:12]} 36. Re2 {[%clk 0:00:08]}  Rc6 {[%clk 0:00:12]} 37. Kf2 {[%clk 0:00:08]}  Rxe6 {[%clk 0:00:11]} 38. Rc2 {[%clk 0:00:08]}  Rc6 {[%clk 0:00:08]} 39. Rxc6 {[%clk 0:00:06]}  bxc6 {[%clk 0:00:08]} 40. Ke3 {[%clk 0:00:07]}  Kd6 {[%clk 0:00:08]} 41. Kd4 {[%clk 0:00:07]}  c5+ {[%clk 0:00:07]} 42. Kc4 {[%clk 0:00:07]}  Kc6 {[%clk 0:00:07]} 43. a4 {[%clk 0:00:08]}  g6 {[%clk 0:00:06]} 44. g4 {[%clk 0:00:04]}  g5 {[%clk 0:00:06]} 45. h3 {[%clk 0:00:04]}  h6 {[%clk 0:00:06]} 46. b4 {[%clk 0:00:04]}  cxb4 {[%clk 0:00:06]} 47. Kxb4 {[%clk 0:00:05]}  Kc7 {[%clk 0:00:05]} 48. Kc4 {[%clk 0:00:06]}  Kc6 {[%clk 0:00:05]} 49. Kd4 {[%clk 0:00:05]}  Kd6 {[%clk 0:00:06]} 50. Kc4 {[%clk 0:00:04]}  Kc6 {[%clk 0:00:06]} 51. Kb4 {[%clk 0:00:05]}  Kc7 {[%clk 0:00:06]} 52. Kb5 {[%clk 0:00:06]}  Kb7 {[%clk 0:00:07]} 53. Kc4 {[%clk 0:00:04]}  Kc6 {[%clk 0:00:07]} 1/2-1/2


[Site "https://www.chess.com"]

[Event "Titled Tuesday Blitz May 30 Early 2023"]
[White "Lorenzo De La Riva, Lazaro"]
[Black "Fridman, Daniel"]
[WhiteFideId "2268809"]
[BlackFideId "11600454"]
[WhiteElo "2294"]
[BlackElo "2525"]
[Result "0-1"]
[Round "01"]
[TimeControl "180+2"]
[Date "2023.05.30"]
[WhiteClock "0:00:35"]
[BlackClock "0:01:52"]

1. e4 {[%clk 0:03:00]}  c6 {[%clk 0:02:15]} 2. d4 {[%clk 0:03:00]}  d5 {[%clk 0:02:15]} 3. Nc3 {[%clk 0:02:55]}  dxe4 {[%clk 0:02:15]} 4. Bc4 {[%clk 0:02:55]}  Bf5 {[%clk 0:02:16]} 5. f3 {[%clk 0:02:54]}  Nf6 {[%clk 0:02:16]} 6. fxe4 {[%clk 0:02:52]}  Nxe4 {[%clk 0:02:15]} 7. Qf3 {[%clk 0:02:46]}  Nd6 {[%clk 0:02:15]} 8. Bb3 {[%clk 0:02:39]}  e6 {[%clk 0:02:14]} 9. Bf4 {[%clk 0:02:39]}  Nd7 {[%clk 0:02:13]} 10. O-O-O {[%clk 0:02:32]}  Nf6 {[%clk 0:02:12]} 11. h3 {[%clk 0:02:30]}  h6 {[%clk 0:02:12]} 12. g4 {[%clk 0:02:30]}  Bg6 {[%clk 0:02:12]} 13. Nge2 {[%clk 0:02:28]}  Be7 {[%clk 0:02:11]} 14. Ng3 {[%clk 0:02:19]}  Nd5 {[%clk 0:02:11]} 15. Nxd5 {[%clk 0:02:06]}  cxd5 {[%clk 0:02:12]} 16. Rde1 {[%clk 0:02:01]}  O-O {[%clk 0:02:09]} 17. h4 {[%clk 0:01:51]}  a5 {[%clk 0:02:04]} 18. a3 {[%clk 0:01:24]}  a4 {[%clk 0:02:02]} 19. Ba2 {[%clk 0:01:24]}  Rc8 {[%clk 0:02:02]} 20. Re2 {[%clk 0:01:23]}  Ne4 {[%clk 0:02:00]} 21. h5 {[%clk 0:00:59]}  Bh7 {[%clk 0:01:59]} 22. Nf1 {[%clk 0:00:56]}  b5 {[%clk 0:01:53]} 23. Nd2 {[%clk 0:00:48]}  b4 {[%clk 0:01:52]} 24. axb4 {[%clk 0:00:46]}  Bxb4 {[%clk 0:01:52]} 25. c3 {[%clk 0:00:40]}  Nxc3 {[%clk 0:01:51]} 26. bxc3 {[%clk 0:00:39]}  Rxc3+ {[%clk 0:01:51]} 27. Qxc3 {[%clk 0:00:35]}  Bxc3 {[%clk 0:01:52]} 0-1


[Site "https://www.chess.com"]

[Event "Titled Tuesday Blitz May 30 Early 2023"]
[White "Nguyen, Ngoc Truong Son"]
[Black "Senft, Sean"]
[WhiteFideId "12401110"]
[BlackFideId "2044960"]
[WhiteElo "2556"]
[BlackElo "1989"]
[Result "1-0"]
[Round "01"]
[TimeControl "180+2"]
[Date "2023.05.30"]
[WhiteClock "0:00:09"]
[BlackClock "0:00:05"]

1. d4 {[%clk 0:02:54]}  d5 {[%clk 0:02:57]} 2. c4 {[%clk 0:02:53]}  c6 {[%clk 0:02:57]} 3. Nc3 {[%clk 0:02:53]}  Nf6 {[%clk 0:02:57]} 4. Nf3 {[%clk 0:02:53]}  a6 {[%clk 0:02:57]} 5. c5 {[%clk 0:02:49]}  Nbd7 {[%clk 0:02:50]} 6. Bf4 {[%clk 0:02:48]}  Nh5 {[%clk 0:02:49]} 7. Bd2 {[%clk 0:02:42]}  e6 {[%clk 0:02:43]} 8. e4 {[%clk 0:02:26]}  dxe4 {[%clk 0:02:40]} 9. Nxe4 {[%clk 0:02:27]}  Be7 {[%clk 0:02:27]} 10. Qc2 {[%clk 0:02:23]}  O-O {[%clk 0:02:19]} 11. Bd3 {[%clk 0:02:20]}  g6 {[%clk 0:02:14]} 12. h4 {[%clk 0:02:16]}  f5 {[%clk 0:01:58]} 13. Neg5 {[%clk 0:02:15]}  Ndf6 {[%clk 0:01:54]} 14. O-O-O {[%clk 0:02:05]}  Ng4 {[%clk 0:01:29]} 15. Bc3 {[%clk 0:01:50]}  Bf6 {[%clk 0:01:18]} 16. Bc4 {[%clk 0:01:48]}  Re8 {[%clk 0:01:10]} 17. g3 {[%clk 0:01:38]}  b5 {[%clk 0:00:59]} 18. cxb6 {[%clk 0:01:34]}  Qxb6 {[%clk 0:01:00]} 19. Rhe1 {[%clk 0:01:34]}  Ng7 {[%clk 0:01:00]} 20. Re2 {[%clk 0:01:14]}  h6 {[%clk 0:00:51]} 21. Nh3 {[%clk 0:01:14]}  Ra7 {[%clk 0:00:29]} 22. Rde1 {[%clk 0:01:03]}  Kh7 {[%clk 0:00:26]} 23. Nf4 {[%clk 0:01:02]}  Rae7 {[%clk 0:00:27]} 24. Ne5 {[%clk 0:01:00]}  Bxe5 {[%clk 0:00:20]} 25. dxe5 {[%clk 0:01:00]}  h5 {[%clk 0:00:17]} 26. Nh3 {[%clk 0:00:59]}  Nh6 {[%clk 0:00:16]} 27. Ng5+ {[%clk 0:00:58]}  Kg8 {[%clk 0:00:16]} 28. Rd1 {[%clk 0:00:54]}  Nf7 {[%clk 0:00:16]} 29. Nf3 {[%clk 0:00:52]}  Rd8 {[%clk 0:00:16]} 30. Red2 {[%clk 0:00:51]}  Red7 {[%clk 0:00:16]} 31. Rxd7 {[%clk 0:00:34]}  Rxd7 {[%clk 0:00:16]} 32. Rxd7 {[%clk 0:00:34]}  Bxd7 {[%clk 0:00:16]} 33. Qd2 {[%clk 0:00:34]}  Qc7 {[%clk 0:00:16]} 34. Bxa6 {[%clk 0:00:30]}  c5 {[%clk 0:00:16]} 35. Bc4 {[%clk 0:00:29]}  Bc6 {[%clk 0:00:16]} 36. Ng5 {[%clk 0:00:28]}  Nxg5 {[%clk 0:00:16]} 37. hxg5 {[%clk 0:00:27]}  Qe7 {[%clk 0:00:12]} 38. f4 {[%clk 0:00:21]}  Ne8 {[%clk 0:00:09]} 39. b3 {[%clk 0:00:18]}  Kf7 {[%clk 0:00:09]} 40. Kb2 {[%clk 0:00:18]}  Qc7 {[%clk 0:00:09]} 41. a4 {[%clk 0:00:18]}  Qb7 {[%clk 0:00:08]} 42. a5 {[%clk 0:00:17]}  Bb5 {[%clk 0:00:08]} 43. Qd3 {[%clk 0:00:16]}  Bxc4 {[%clk 0:00:08]} 44. Qxc4 {[%clk 0:00:16]}  Qg2+ {[%clk 0:00:08]} 45. Ka3 {[%clk 0:00:16]}  Qxg3 {[%clk 0:00:09]} 46. a6 {[%clk 0:00:16]}  Qf3 {[%clk 0:00:05]} 47. Qxc5 {[%clk 0:00:15]}  Qa8 {[%clk 0:00:05]} 48. a7 {[%clk 0:00:15]}  Qb7 {[%clk 0:00:04]} 49. Bb4 {[%clk 0:00:15]}  Kg7 {[%clk 0:00:02]} 50. Qf8+ {[%clk 0:00:13]}  Kh7 {[%clk 0:00:02]} 51. Qh6+ {[%clk 0:00:12]}  Kg8 {[%clk 0:00:02]} 52. Qf8+ {[%clk 0:00:12]}  Kh7 {[%clk 0:00:02]} 53. Qxe8 {[%clk 0:00:08]}  Qxa7+ {[%clk 0:00:02]} 54. Qa4 {[%clk 0:00:08]}  Qf2 {[%clk 0:00:02]} 55. Qd7+ {[%clk 0:00:08]}  Kh8 {[%clk 0:00:01]} 56. Qe8+ {[%clk 0:00:08]}  Kh7 {[%clk 0:00:02]} 57. Qf7+ {[%clk 0:00:08]}  Kh8 {[%clk 0:00:03]} 58. Qf8+ {[%clk 0:00:09]}  Kh7 {[%clk 0:00:03]} 59. Qh6+ {[%clk 0:00:09]}  Kg8 {[%clk 0:00:03]} 60. Qxg6+ {[%clk 0:00:09]}  Kh8 {[%clk 0:00:04]} 61. Qxh5+ {[%clk 0:00:09]}  Kg7 {[%clk 0:00:04]} 62. Qh6+ {[%clk 0:00:09]}  Kg8 {[%clk 0:00:04]} 63. Qxe6+ {[%clk 0:00:09]}  Kg7 {[%clk 0:00:04]} 64. Qf6+ {[%clk 0:00:09]}  Kh7 {[%clk 0:00:05]} 65. g6+ {[%clk 0:00:09]}  Kg8 {[%clk 0:00:05]} 66. Qf7+ {[%clk 0:00:09]}  Kh8 {[%clk 0:00:05]} 67. Qh7# {[%clk 0:00:09]} 1-0


[Site "https://www.chess.com"]

[Event "Titled Tuesday Blitz May 30 Early 2023"]
[White "Liu, Casper"]
[Black "Makarian, Rudik"]
[WhiteFideId "1454153"]
[BlackFideId "44105681"]
[WhiteElo "2221"]
[BlackElo "2461"]
[Result "0-1"]
[Round "01"]
[TimeControl "180+2"]
[Date "2023.05.30"]
[WhiteClock "0:01:14"]
[BlackClock "0:01:18"]

1. d4 {[%clk 0:03:00]}  Nf6 {[%clk 0:02:59]} 2. Bf4 {[%clk 0:03:01]}  c5 {[%clk 0:02:59]} 3. e3 {[%clk 0:03:01]}  Qb6 {[%clk 0:02:59]} 4. Na3 {[%clk 0:03:02]}  d6 {[%clk 0:02:59]} 5. Nc4 {[%clk 0:03:01]}  Qc7 {[%clk 0:02:58]} 6. c3 {[%clk 0:03:00]}  g6 {[%clk 0:02:59]} 7. h4 {[%clk 0:02:59]}  h5 {[%clk 0:02:57]} 8. Nf3 {[%clk 0:02:59]}  Bg7 {[%clk 0:02:57]} 9. dxc5 {[%clk 0:02:58]}  Qxc5 {[%clk 0:02:54]} 10. Qd4 {[%clk 0:02:59]}  Qxd4 {[%clk 0:02:38]} 11. cxd4 {[%clk 0:02:57]}  Nc6 {[%clk 0:02:38]} 12. Rc1 {[%clk 0:02:57]}  Be6 {[%clk 0:02:37]} 13. Ng5 {[%clk 0:02:55]}  Bd5 {[%clk 0:02:35]} 14. f3 {[%clk 0:02:55]}  O-O {[%clk 0:02:35]} 15. a3 {[%clk 0:02:46]}  Rac8 {[%clk 0:02:34]} 16. e4 {[%clk 0:02:30]}  Bxc4 {[%clk 0:02:23]} 17. Rxc4 {[%clk 0:02:31]}  Nd7 {[%clk 0:02:04]} 18. d5 {[%clk 0:02:20]}  Na5 {[%clk 0:02:02]} 19. Rb4 {[%clk 0:02:14]}  Rc2 {[%clk 0:01:57]} 20. Bb5 {[%clk 0:02:06]}  Nc5 {[%clk 0:01:47]} 21. O-O {[%clk 0:02:06]}  Rxb2 {[%clk 0:01:43]} 22. Be3 {[%clk 0:01:52]}  a6 {[%clk 0:01:36]} 23. Ba4 {[%clk 0:01:37]}  b5 {[%clk 0:01:32]} 24. Bd1 {[%clk 0:01:33]}  Nc4 {[%clk 0:01:32]} 25. Bc1 {[%clk 0:01:30]}  Rxb4 {[%clk 0:01:29]} 26. axb4 {[%clk 0:01:30]}  Nd3 {[%clk 0:01:30]} 27. Be2 {[%clk 0:01:28]}  Nxb4 {[%clk 0:01:27]} 28. Bxc4 {[%clk 0:01:26]}  bxc4 {[%clk 0:01:28]} 29. Bd2 {[%clk 0:01:23]}  c3 {[%clk 0:01:28]} 30. Be3 {[%clk 0:01:24]}  Rc8 {[%clk 0:01:25]} 31. Nh3 {[%clk 0:01:23]}  c2 {[%clk 0:01:24]} 32. Nf2 {[%clk 0:01:24]}  a5 {[%clk 0:01:23]} 33. Bd2 {[%clk 0:01:20]}  Bc3 {[%clk 0:01:20]} 34. Bc1 {[%clk 0:01:14]}  Bd4 {[%clk 0:01:18]} 0-1


[Site "https://www.chess.com"]

[Event "Titled Tuesday Blitz May 30 Early 2023"]
[White "Pichot, Alan"]
[Black "Tanmay Jain"]
[WhiteFideId "110973"]
[BlackFideId "45015481"]
[WhiteElo "2573"]
[BlackElo "2032"]
[Result "1-0"]
[Round "01"]
[TimeControl "180+2"]
[Date "2023.05.30"]
[WhiteClock "0:00:05"]
[BlackClock "0:00:28"]

1. e4 {[%clk 0:02:55]}  c5 {[%clk 0:02:59]} 2. Nf3 {[%clk 0:02:47]}  d6 {[%clk 0:03:00]} 3. Bb5+ {[%clk 0:02:44]}  Bd7 {[%clk 0:02:59]} 4. Bxd7+ {[%clk 0:02:43]}  Nxd7 {[%clk 0:03:00]} 5. O-O {[%clk 0:02:43]}  Ngf6 {[%clk 0:03:00]} 6. Re1 {[%clk 0:02:43]}  e5 {[%clk 0:02:53]} 7. c3 {[%clk 0:02:39]}  Be7 {[%clk 0:02:52]} 8. d4 {[%clk 0:02:39]}  cxd4 {[%clk 0:02:52]} 9. cxd4 {[%clk 0:02:39]}  O-O {[%clk 0:02:53]} 10. Nc3 {[%clk 0:02:39]}  Re8 {[%clk 0:02:47]} 11. Bg5 {[%clk 0:02:27]}  h6 {[%clk 0:02:32]} 12. Bh4 {[%clk 0:02:23]}  Bf8 {[%clk 0:02:18]} 13. dxe5 {[%clk 0:01:59]}  dxe5 {[%clk 0:02:08]} 14. Nd5 {[%clk 0:01:58]}  Be7 {[%clk 0:02:09]} 15. Nxe7+ {[%clk 0:01:52]}  Qxe7 {[%clk 0:02:09]} 16. Rc1 {[%clk 0:01:52]}  Rac8 {[%clk 0:02:04]} 17. Qb3 {[%clk 0:01:37]}  Nc5 {[%clk 0:01:56]} 18. Qa3 {[%clk 0:01:34]}  b6 {[%clk 0:01:16]} 19. Bxf6 {[%clk 0:01:23]}  Qxf6 {[%clk 0:01:05]} 20. b4 {[%clk 0:01:22]}  Ne6 {[%clk 0:01:01]} 21. Qxa7 {[%clk 0:01:21]}  Nf4 {[%clk 0:01:00]} 22. Qd7 {[%clk 0:01:11]}  Rcd8 {[%clk 0:00:41]} 23. Qb5 {[%clk 0:01:09]}  Nd3 {[%clk 0:00:41]} 24. Rc6 {[%clk 0:01:08]}  Nxe1 {[%clk 0:00:29]} 25. Rxf6 {[%clk 0:01:07]}  Nxf3+ {[%clk 0:00:29]} 26. Rxf3 {[%clk 0:00:35]}  Rd1+ {[%clk 0:00:29]} 27. Qf1 {[%clk 0:00:36]}  Rxf1+ {[%clk 0:00:30]} 28. Kxf1 {[%clk 0:00:37]}  Rd8 {[%clk 0:00:31]} 29. a3 {[%clk 0:00:36]}  Rd4 {[%clk 0:00:31]} 30. Re3 {[%clk 0:00:36]}  Rc4 {[%clk 0:00:30]} 31. g3 {[%clk 0:00:37]}  Rc2 {[%clk 0:00:30]} 32. Kg2 {[%clk 0:00:37]}  f6 {[%clk 0:00:31]} 33. Kf3 {[%clk 0:00:38]}  Kf7 {[%clk 0:00:31]} 34. Rd3 {[%clk 0:00:38]}  Kg6 {[%clk 0:00:30]} 35. Ke3 {[%clk 0:00:37]}  Rc4 {[%clk 0:00:30]} 36. h4 {[%clk 0:00:28]}  h5 {[%clk 0:00:29]} 37. Rb3 {[%clk 0:00:28]}  Rc2 {[%clk 0:00:29]} 38. Kf3 {[%clk 0:00:13]}  Kf7 {[%clk 0:00:27]} 39. Rd3 {[%clk 0:00:12]}  Rc4 {[%clk 0:00:27]} 40. Rd7+ {[%clk 0:00:11]}  Kg6 {[%clk 0:00:27]} 41. Rd6 {[%clk 0:00:06]}  Rc3+ {[%clk 0:00:27]} 42. Kg2 {[%clk 0:00:06]}  Rxa3 {[%clk 0:00:27]} 43. Rxb6 {[%clk 0:00:07]}  Rb3 {[%clk 0:00:28]} 44. b5 {[%clk 0:00:07]}  Rb4 {[%clk 0:00:28]} 45. f3 {[%clk 0:00:05]}  Rb2+ {[%clk 0:00:28]} 46. Kg1 {[%clk 0:00:04]}  Rb3 {[%clk 0:00:28]} 47. Kf2 {[%clk 0:00:04]}  Rb2+ {[%clk 0:00:29]} 48. Kf1 {[%clk 0:00:05]}  Rb3 {[%clk 0:00:28]} 49. Ke2 {[%clk 0:00:04]}  Rb2+ {[%clk 0:00:28]} 50. Ke1 {[%clk 0:00:04]}  Rb3 {[%clk 0:00:29]} 51. f4 {[%clk 0:00:04]}  Rxg3 {[%clk 0:00:28]} 52. f5+ {[%clk 0:00:05]}  Kh6 {[%clk 0:00:28]} 53. Rb8 {[%clk 0:00:05]}  Re3+ {[%clk 0:00:28]} 54. Kf2 {[%clk 0:00:05]}  Rxe4 {[%clk 0:00:28]} 55. Rh8# {[%clk 0:00:05]} 1-0


[Site "https://www.chess.com"]

[Event "Titled Tuesday Blitz May 30 Early 2023"]
[White "Zemlyanskii, Ivan"]
[Black "Santos Flores, Alberto"]
[WhiteFideId "24249971"]
[BlackFideId "3601234"]
[WhiteElo "2421"]
[BlackElo "2235"]
[Result "1-0"]
[Round "01"]
[TimeControl "180+2"]
[Date "2023.05.30"]
[WhiteClock "0:00:22"]
[BlackClock "0:00:08"]

1. d4 {[%clk 0:02:59]}  d5 {[%clk 0:02:59]} 2. Bf4 {[%clk 0:02:59]}  Nf6 {[%clk 0:02:59]} 3. e3 {[%clk 0:02:58]}  c5 {[%clk 0:02:59]} 4. c3 {[%clk 0:02:57]}  Nc6 {[%clk 0:02:58]} 5. Nf3 {[%clk 0:02:57]}  Qb6 {[%clk 0:02:58]} 6. Qc2 {[%clk 0:02:58]}  Bg4 {[%clk 0:02:53]} 7. Ne5 {[%clk 0:02:46]}  Nxe5 {[%clk 0:02:49]} 8. Bxe5 {[%clk 0:02:44]}  cxd4 {[%clk 0:02:35]} 9. exd4 {[%clk 0:02:32]}  a6 {[%clk 0:02:34]} 10. Bd3 {[%clk 0:02:28]}  e6 {[%clk 0:02:34]} 11. Nd2 {[%clk 0:02:28]}  Be7 {[%clk 0:02:33]} 12. O-O {[%clk 0:02:21]}  Bh5 {[%clk 0:02:30]} 13. Qb3 {[%clk 0:02:20]}  Qxb3 {[%clk 0:02:28]} 14. axb3 {[%clk 0:02:19]}  O-O {[%clk 0:02:23]} 15. b4 {[%clk 0:02:19]}  Bg6 {[%clk 0:02:22]} 16. Be2 {[%clk 0:02:15]}  Ne4 {[%clk 0:02:20]} 17. Nb3 {[%clk 0:02:10]}  Bd6 {[%clk 0:01:49]} 18. Bxd6 {[%clk 0:01:56]}  Nxd6 {[%clk 0:01:50]} 19. h4 {[%clk 0:01:57]}  h6 {[%clk 0:01:48]} 20. Nc5 {[%clk 0:01:54]}  Rfc8 {[%clk 0:01:42]} 21. Ra2 {[%clk 0:01:52]}  Rd8 {[%clk 0:01:22]} 22. Rfa1 {[%clk 0:01:50]}  Rab8 {[%clk 0:01:22]} 23. f3 {[%clk 0:01:36]}  Kf8 {[%clk 0:01:15]} 24. Ra3 {[%clk 0:01:09]}  Ke7 {[%clk 0:01:15]} 25. Kf2 {[%clk 0:01:09]}  Rdc8 {[%clk 0:01:03]} 26. g4 {[%clk 0:00:56]}  Rd8 {[%clk 0:00:56]} 27. h5 {[%clk 0:00:54]}  Bh7 {[%clk 0:00:55]} 28. Ke3 {[%clk 0:00:54]}  Rdc8 {[%clk 0:00:55]} 29. f4 {[%clk 0:00:53]}  Ne4 {[%clk 0:00:54]} 30. Bd3 {[%clk 0:00:48]}  Nxc5 {[%clk 0:00:54]} 31. bxc5 {[%clk 0:00:45]}  Bxd3 {[%clk 0:00:53]} 32. Kxd3 {[%clk 0:00:46]}  Kd7 {[%clk 0:00:51]} 33. Rf1 {[%clk 0:00:42]}  g6 {[%clk 0:00:44]} 34. hxg6 {[%clk 0:00:40]}  fxg6 {[%clk 0:00:45]} 35. Rh1 {[%clk 0:00:39]}  Rh8 {[%clk 0:00:45]} 36. Raa1 {[%clk 0:00:40]}  Rbf8 {[%clk 0:00:43]} 37. Ke3 {[%clk 0:00:40]}  Rf7 {[%clk 0:00:39]} 38. Rh4 {[%clk 0:00:38]}  h5 {[%clk 0:00:35]} 39. Rg1 {[%clk 0:00:33]}  Rfh7 {[%clk 0:00:28]} 40. gxh5 {[%clk 0:00:28]}  Rxh5 {[%clk 0:00:23]} 41. Rxh5 {[%clk 0:00:28]}  gxh5 {[%clk 0:00:23]} 42. Rg7+ {[%clk 0:00:28]}  Kc6 {[%clk 0:00:23]} 43. Rg6 {[%clk 0:00:28]}  h4 {[%clk 0:00:21]} 44. Rxe6+ {[%clk 0:00:27]}  Kb5 {[%clk 0:00:21]} 45. Kf2 {[%clk 0:00:25]}  h3 {[%clk 0:00:21]} 46. Kg1 {[%clk 0:00:26]}  Kc4 {[%clk 0:00:20]} 47. Rb6 {[%clk 0:00:24]}  Rh7 {[%clk 0:00:18]} 48. Kh2 {[%clk 0:00:21]}  Kd3 {[%clk 0:00:18]} 49. f5 {[%clk 0:00:21]}  Ke4 {[%clk 0:00:17]} 50. f6 {[%clk 0:00:22]}  Kd3 {[%clk 0:00:16]} 51. Re6 {[%clk 0:00:21]}  Kc2 {[%clk 0:00:16]} 52. Re7 {[%clk 0:00:21]}  Rh6 {[%clk 0:00:13]} 53. f7 {[%clk 0:00:21]}  Rf6 {[%clk 0:00:13]} 54. Rxb7 {[%clk 0:00:22]}  a5 {[%clk 0:00:13]} 55. c6 {[%clk 0:00:22]}  a4 {[%clk 0:00:12]} 56. c7 {[%clk 0:00:22]}  Rxf7 {[%clk 0:00:11]} 57. c8=Q {[%clk 0:00:22]}  Rxb7 {[%clk 0:00:08]} 58. Qxb7 {[%clk 0:00:22]} 1-0


[Site "https://www.chess.com"]